fUST/lending_fUST_20250702
["ID","MTS","AMOUNT","RATE_DAILY","PERIOD"]
[368907696,1751389834554,-460.0,0.00017382,2]
[368907697,1751389834563,-444.84,0.00017382,2]
[368907698,1751389834573,-474.1,0.00017382,2]
[368907699,1751389834596,-460.0,0.00017383,2]
[368907700,1751389834606,-235.85250265,0.00017383,2]
[368907701,1751389834615,-192.93587679,0.00017383,2]
[368907702,1751389834625,-460.0,0.00017383,2]
[368907703,1751389834635,-460.0,0.00017383,2]
[368907704,1751389834644,-460.0,0.00017383,2]
[368907705,1751389834654,-460.0,0.00017383,2]
[368907706,1751389834663,-369.51,0.00017383,2]
[368907707,1751389834672,-460.0,0.00017383,2]
[368907708,1751389834682,-460.0,0.00017383,2]
[368907709,1751389834691,-460.0,0.00017383,2]
[368907710,1751389834701,-460.0,0.00017383,2]
[368907711,1751389834710,-460.0,0.00017383,2]
[368907712,1751389834720,-460.0,0.00017439,2]
[368907713,1751389834729,-500.0,0.00017569,2]
[368907714,1751389834739,-2364.98346065,0.00017571,2]
[368907715,1751389834748,-150.15074951,0.00017595,2]
[368907716,1751389834758,-460.0,0.00017654,2]
[368907717,1751389834767,-830.52,0.00017655,2]
[368907718,1751389834776,-571.52,0.00017655,2]
[368907719,1751389834786,-460.0,0.00017655,2]
[368907720,1751389834795,-460.0,0.00017655,2]
[368907721,1751389834804,-460.0,0.00017655,2]
[368907722,1751389834815,-460.0,0.00017655,2]
[368907723,1751389834824,-501.74,0.00017655,2]
[368907724,1751389834833,-644.56,0.00017655,2]
[368907725,1751389834843,-460.0,0.00017655,2]
[368907726,1751389834852,-229.32,0.00017655,2]
[368907727,1751389834861,-226.49,0.00017655,2]
[368907728,1751389834871,-460.0,0.00017655,2]
[368907729,1751389834880,-460.0,0.00017656,2]
[368907730,1751389834889,-166.1,0.00017656,2]
[368907731,1751389834898,-460.0,0.00017657,2]
[368907732,1751389834908,-529.06,0.00017657,2]
[368907733,1751389834917,-460.0,0.00017657,2]
[368907734,1751389834926,-460.0,0.00017657,2]
[368907735,1751389834936,-460.0,0.00017657,2]
[368907736,1751389834945,-314.92,0.00017657,2]
[368907737,1751389834954,-501.06090563,0.00017673,2]
[368907738,1751389834964,-500.0,0.00017673,2]
[368907739,1751389834973,-500.0,0.00017673,2]
[368907740,1751389834982,-500.0,0.00017673,2]
[368907741,1751389834992,-500.0,0.00017673,2]
[368907742,1751389835001,-500.0,0.00017673,2]
[368907743,1751389835011,-500.0,0.00017673,2]
[368907744,1751389835020,-500.0,0.00017673,2]
[368907745,1751389835030,-500.0,0.00017673,2]
[368907746,1751389835039,-224.68595389,0.00017673,2]
[368907747,1751389835049,-500.0,0.00017673,2]
[368907748,1751389835058,-500.0,0.00017673,2]
[368907749,1751389835067,-500.0,0.00017673,2]
[368907750,1751389835077,-454.95,0.00017682,3]
[368907751,1751389835087,-471.46,0.00017685,3]
[368907752,1751389835096,-500.0,0.00017691,2]
[368907753,1751389835107,-460.0,0.00017692,2]
[368907754,1751389835116,-460.0,0.00017692,2]
[368907755,1751389835126,-460.0,0.00017692,2]
[368907756,1751389835136,-460.0,0.00017692,2]
[368907757,1751389835145,-460.0,0.00017692,2]
[368907758,1751389835155,-460.0,0.00017692,2]
[368907759,1751389835165,-460.0,0.00017692,2]
[368907760,1751389835174,-460.0,0.00017692,2]
[368907761,1751389835183,-460.0,0.00017692,2]
[368907762,1751389835192,-460.0,0.00017692,2]
[368907763,1751389835202,-460.0,0.00017692,2]
[368907764,1751389835211,-464.44081624,0.00017692,2]
[368907765,1751389835220,-463.24660817,0.00017692,2]
[368907766,1751389835230,-460.0,0.00017692,2]
[368907767,1751389835240,-460.0,0.00017692,2]
[368907768,1751389835249,-460.0,0.00017692,2]
[368907769,1751389835258,-460.0,0.00017692,2]
[368907770,1751389835268,-460.0,0.00017692,2]
[368907771,1751389835277,-460.0,0.00017692,2]
[368907772,1751389835287,-460.0,0.00017692,2]
[368907773,1751389835296,-460.0,0.00017692,2]
[368907774,1751389835305,-460.0,0.00017694,2]
[368907775,1751389835314,-460.0,0.00017694,2]
[368907776,1751389835323,-460.0,0.00017694,2]
[368907777,1751389835332,-460.0,0.00017694,2]
[368907778,1751389835342,-460.0,0.00017694,2]
[368907779,1751389835355,-460.0,0.00017694,2]
[368907780,1751389835364,-460.0,0.00017694,2]
[368907781,1751389835374,-460.0,0.00017694,2]
[368907782,1751389835383,-460.0,0.00017694,2]
[368907783,1751389835392,-460.0,0.00017694,2]
[368907784,1751389835402,-460.0,0.00017694,2]
[368907785,1751389835411,-460.0,0.00017694,2]
[368907786,1751389835420,-460.0,0.00017694,2]
[368907787,1751389835430,-506.05949196,0.00017694,2]
[368907788,1751389835440,-460.0,0.00017694,2]
[368907789,1751389835449,-460.0,0.00017694,2]
[368907790,1751389835458,-267.36086693,0.00017694,2]
[368907791,1751389835467,-460.0,0.00017694,2]
[368907792,1751389835477,-460.0,0.00017694,2]
[368907793,1751389835486,-460.0,0.00017694,2]
[368907794,1751389835495,-500.0,0.00017694,2]
[368907795,1751389835505,-500.0,0.00017694,2]
[368907796,1751389835514,-460.0,0.00017695,2]
[368907797,1751389835524,-460.0,0.00017695,2]
[368907798,1751389835533,-460.0,0.00017695,2]
[368907799,1751389835542,-460.0,0.00017695,2]
[368907800,1751389835551,-460.0,0.00017695,2]
[368907801,1751389835560,-460.0,0.00017695,2]
[368907802,1751389835570,-460.0,0.00017695,2]
[368907803,1751389835579,-460.0,0.00017695,2]
[368907804,1751389835589,-460.0,0.00017695,2]
[368907805,1751389835598,-460.0,0.00017695,2]
[368907806,1751389835608,-460.0,0.00017695,2]
[368907807,1751389835618,-460.0,0.00017695,2]
[368907808,1751389835627,-460.0,0.00017695,2]
[368907809,1751389835636,-460.0,0.00017695,2]
[368907810,1751389835645,-460.0,0.00017695,2]
[368907811,1751389835655,-460.0,0.00017695,2]
[368907812,1751389835665,-6208.56993641,0.00017695,2]
[368907813,1751389835675,-460.0,0.00017695,2]
[368907814,1751389835684,-460.0,0.00017695,2]
[368907815,1751389835694,-546.38,0.00017695,2]
[368907816,1751389835703,-460.0,0.00017695,2]
[368907817,1751389835713,-462.82058247,0.00017695,2]
[368907818,1751389835722,-460.0,0.00017695,2]
[368907819,1751389835731,-460.0,0.00017695,2]
[368907820,1751389835741,-460.0,0.00017695,2]
[368907821,1751389835750,-460.0,0.00017695,2]
[368907822,1751389835760,-460.0,0.00017695,2]
[368907823,1751389835770,-440.93179543,0.00017695,2]
[368907824,1751389835779,-460.0,0.00017695,2]
[368907825,1751389835788,-460.0,0.00017695,2]
[368907826,1751389835798,-510.67,0.00017695,2]
[368907827,1751389835807,-460.0,0.00017695,2]
[368907828,1751389835817,-460.0,0.00017695,2]
[368907829,1751389835827,-460.0,0.00017695,2]
[368907830,1751389835838,-460.0,0.00017695,2]
[368907831,1751389835848,-639.64,0.00017695,2]
[368907832,1751389835858,-460.0,0.00017695,2]
[368907833,1751389835867,-460.0,0.00017695,2]
[368907834,1751389835877,-460.0,0.00017695,2]
[368907835,1751389835886,-460.0,0.00017695,2]
[368907836,1751389835895,-460.0,0.00017695,2]
[368907837,1751389835905,-460.0,0.00017695,2]
[368907838,1751389835915,-460.0,0.00017695,2]
[368907839,1751389835925,-460.0,0.00017695,2]
[368907840,1751389835934,-460.0,0.00017695,2]
[368907841,1751389835943,-460.0,0.00017695,2]
[368907842,1751389835953,-460.0,0.00017695,2]
[368907843,1751389835963,-460.0,0.00017695,2]
[368907844,1751389835972,-417.46930449,0.00017695,2]
[368907845,1751389835982,-288.99757411,0.00017695,2]
[368907846,1751389835991,-460.0,0.00017695,2]
[368907847,1751389836001,-460.0,0.00017695,2]
[368907848,1751389836010,-460.0,0.00017695,2]
[368907849,1751389836021,-460.0,0.00017695,2]
[368907850,1751389836030,-460.0,0.00017695,2]
[368907851,1751389836040,-460.0,0.00017695,2]
[368907852,1751389836049,-460.0,0.00017695,2]
[368907853,1751389836058,-462.67557785,0.00017695,2]
[368907854,1751389836068,-500.0,0.00017695,2]
[368907855,1751389836078,-500.0,0.00017695,2]
[368907856,1751389836087,-460.0,0.00017695,2]
[368907857,1751389836096,-460.0,0.00017695,2]
[368907858,1751389836106,-460.0,0.00017695,2]
[368907859,1751389836115,-460.0,0.00017695,2]
[368907860,1751389836124,-460.46087639,0.00017695,2]
[368907861,1751389836134,-460.0,0.00017695,2]
[368907862,1751389836143,-460.0,0.00017695,2]
[368907863,1751389836153,-460.0,0.00017695,2]
[368907864,1751389836162,-460.0,0.00017695,2]
[368907865,1751389836171,-460.0,0.00017695,2]
[368907866,1751389836180,-460.0,0.00017695,2]
[368907867,1751389836190,-556.74231137,0.00017695,2]
[368907868,1751389836200,-460.0,0.00017695,2]
[368907869,1751389836210,-460.0,0.00017695,2]
[368907870,1751389836220,-460.0,0.00017695,2]
[368907871,1751389836229,-196.67816625,0.00017695,2]
[368907872,1751389836239,-460.0,0.00017695,2]
[368907873,1751389836249,-460.0,0.00017695,2]
[368907874,1751389836259,-460.0,0.00017695,2]
[368907875,1751389836268,-460.0,0.00017695,2]
[368907876,1751389836279,-460.0,0.00017695,2]
[368907877,1751389836288,-460.0,0.00017695,2]
[368907878,1751389836298,-460.0,0.00017695,2]
[368907879,1751389836307,-460.0,0.00017695,2]
[368907880,1751389836317,-460.0,0.00017697,2]
[368907881,1751389836326,-460.0,0.00017697,2]
[368907882,1751389836436,-460.0,0.00017697,2]
[368907883,1751389836446,-460.0,0.00017697,2]
[368907884,1751389836455,-460.0,0.00017697,2]
[368907885,1751389836465,-460.0,0.00017697,2]
[368907886,1751389836474,-467.3267806,0.00017697,2]
[368907887,1751389836484,-468.80563431,0.00017697,2]
[368907888,1751389836494,-460.0,0.00017697,2]
[368907889,1751389836503,-460.0,0.00017697,2]
[368907890,1751389836512,-465.1755697,0.00017697,2]
[368907891,1751389836523,-468.46302423,0.00017697,2]
[368907892,1751389836532,-466.03578202,0.00017697,2]
[368907893,1751389836542,-158.21075791,0.00017697,2]
[368907894,1751389836552,-460.0,0.00017697,2]
[368907895,1751389836562,-460.0,0.00017697,2]
[368907896,1751389836606,-460.0,0.00017697,2]
[368907897,1751389836615,-460.0,0.00017697,2]
[368907898,1751389836626,-460.0,0.00017697,2]
[368907899,1751389836635,-460.0,0.00017697,2]
[368907900,1751389836645,-460.0,0.00017697,2]
[368907901,1751389836654,-460.0,0.00017697,2]
[368907902,1751389836663,-460.0,0.00017697,2]
[368907903,1751389836673,-460.0,0.00017697,2]
[368907904,1751389836682,-460.0,0.00017697,2]
[368907905,1751389836692,-460.0,0.00017697,2]
[368907906,1751389836701,-460.0,0.00017697,2]
[368907907,1751389836710,-428.30180076,0.00017697,2]
[368907908,1751389836719,-460.0,0.00017697,2]
[368907909,1751389836728,-460.0,0.00017697,2]
[368907910,1751389836738,-460.0,0.00017697,2]
[368907911,1751389836747,-298.27260382,0.00017697,2]
[368907912,1751389836757,-460.0,0.00017697,2]
[368907913,1751389836766,-460.0,0.00017697,2]
[368907914,1751389836775,-460.0,0.00017697,2]
[368907915,1751389836785,-521.70058083,0.00017698,2]
[368907916,1751389836795,-460.0,0.00017698,2]
[368907917,1751389836805,-460.0,0.00017698,2]
[368907918,1751389836815,-460.0,0.00017698,2]
[368907919,1751389836824,-460.0,0.00017698,2]
[368907920,1751389836834,-392.06,0.00017698,2]
[368907921,1751389836843,-460.0,0.00017698,2]
[368907922,1751389836853,-460.0,0.00017698,2]
[368907923,1751389836862,-460.0,0.00017698,2]
[368907924,1751389836871,-460.0,0.00017698,2]
[368907925,1751389836880,-460.0,0.00017698,2]
[368907926,1751389836890,-460.0,0.00017698,2]
[368907927,1751389836899,-588.0,0.00017698,2]
[368907928,1751389836909,-460.0,0.00017698,2]
[368907929,1751389836918,-432.19609612,0.00017698,2]
[368907930,1751389836928,-460.0,0.00017698,2]
[368907931,1751389836937,-460.0,0.00017698,2]
[368907932,1751389836947,-460.0,0.00017698,2]
[368907933,1751389836956,-397.7611654,0.00017698,2]
[368907934,1751389836966,-460.0,0.00017698,2]
[368907935,1751389836978,-460.0,0.00017698,2]
[368907936,1751389836988,-460.0,0.00017698,2]
[368907937,1751389836997,-460.0,0.00017698,2]
[368907938,1751389837006,-460.0,0.00017698,2]
[368907939,1751389837017,-460.0,0.00017698,2]
[368907940,1751389837026,-460.0,0.00017698,2]
[368907941,1751389837036,-460.0,0.00017698,2]
[368907942,1751389837045,-460.0,0.00017698,2]
[368907943,1751389837055,-460.0,0.00017698,2]
[368907944,1751389837066,-460.0,0.00017698,2]
[368907945,1751389837075,-460.0,0.00017698,2]
[368907946,1751389837085,-460.0,0.00017698,2]
[368907947,1751389837094,-460.0,0.00017698,2]
[368907948,1751389837103,-460.0,0.00017698,2]
[368907949,1751389837112,-460.0,0.00017698,2]
[368907950,1751389837122,-460.0,0.00017698,2]
[368907951,1751389837132,-460.0,0.00017698,2]
[368907952,1751389837141,-464.46217809,0.00017698,2]
[368907953,1751389837150,-405.439813,0.00017698,2]
[368907954,1751389837159,-460.0,0.00017698,2]
[368907955,1751389837169,-460.0,0.00017698,2]
[368907956,1751389837178,-460.0,0.00017698,2]
[368907957,1751389837188,-584.76296042,0.00017698,2]
[368907958,1751389837197,-460.0,0.00017698,2]
[368907959,1751389837206,-460.0,0.00017698,2]
[368907960,1751389837216,-460.0,0.00017698,2]
[368907961,1751389837225,-460.0,0.00017698,2]
[368907962,1751389837234,-460.0,0.00017698,2]
[368907963,1751389837243,-460.0,0.00017698,2]
[368907964,1751389837253,-460.0,0.00017698,2]
[368907965,1751389837262,-460.0,0.00017698,2]
[368907966,1751389837272,-460.0,0.00017698,2]
[368907967,1751389837281,-460.0,0.00017698,2]
[368907968,1751389837290,-460.0,0.00017698,2]
[368907969,1751389837300,-460.0,0.00017698,2]
[368907970,1751389837310,-460.0,0.00017698,2]
[368907971,1751389837319,-460.0,0.00017698,2]
[368907972,1751389837328,-460.0,0.00017698,2]
[368907973,1751389837339,-460.0,0.00017698,2]
[368907974,1751389837350,-460.0,0.00017698,2]
[368907975,1751389837360,-373.98191875,0.00017698,2]
[368907976,1751389837369,-460.0,0.00017698,2]
[368907977,1751389837379,-248.99942428,0.00017698,2]
[368907978,1751389837388,-460.0,0.00017698,2]
[368907979,1751389837398,-460.0,0.00017698,2]
[368907980,1751389837407,-460.0,0.00017698,2]
[368907981,1751389837416,-460.0,0.00017698,2]
[368907982,1751389837426,-460.0,0.00017698,2]
[368907983,1751389837436,-460.0,0.00017698,2]
[368907984,1751389837445,-460.0,0.00017698,2]
[368907985,1751389837454,-460.0,0.00017698,2]
[368907986,1751389837464,-460.0,0.00017698,2]
[368907987,1751389837473,-460.0,0.00017698,2]
[368907988,1751389837482,-460.0,0.00017698,2]
[368907989,1751389837491,-460.0,0.00017698,2]
[368907990,1751389837500,-460.0,0.00017698,2]
[368907991,1751389837510,-460.0,0.00017698,2]
[368907992,1751389837519,-447.90252915,0.00017698,2]
[368907993,1751389837528,-460.0,0.00017698,2]
[368907994,1751389837537,-460.0,0.00017698,2]
[368907995,1751389837546,-460.0,0.00017698,2]
[368907996,1751389837556,-460.0,0.00017698,2]
[368907997,1751389837565,-460.0,0.00017698,2]
[368907998,1751389837575,-460.0,0.00017698,2]
[368907999,1751389837584,-460.0,0.00017698,2]
[368908000,1751389837594,-460.0,0.00017698,2]
[368908001,1751389837603,-460.0,0.00017698,2]
[368908002,1751389837612,-460.0,0.00017698,2]
[368908003,1751389837622,-460.0,0.00017698,2]
[368908004,1751389837631,-500.0,0.00017698,2]
[368908005,1751389837640,-460.0,0.00017698,2]
[368908006,1751389837649,-460.0,0.00017698,2]
[368908007,1751389837658,-460.0,0.00017698,2]
[368908008,1751389837667,-460.0,0.00017698,2]
[368908009,1751389837677,-460.0,0.00017698,2]
[368908010,1751389837686,-460.0,0.00017698,2]
[368908011,1751389837695,-460.0,0.00017698,2]
[368908012,1751389837705,-460.0,0.00017698,2]
[368908013,1751389837714,-460.0,0.00017698,2]
[368908014,1751389837724,-460.37459326,0.00017698,2]
[368908015,1751389837734,-460.0,0.00017698,2]
[368908016,1751389837743,-460.0,0.00017698,2]
[368908017,1751389837753,-460.0,0.00017698,2]
[368908019,1751389837762,-460.0,0.00017698,2]
[368908020,1751389837771,-460.0,0.00017698,2]
[368908021,1751389837781,-460.0,0.00017698,2]
[368908022,1751389837791,-460.0,0.00017698,2]
[368908023,1751389837800,-460.0,0.00017698,2]
[368908024,1751389837809,-460.0,0.00017698,2]
[368908025,1751389837818,-510.50568646,0.00017698,2]
[368908027,1751389837828,-460.0,0.00017698,2]
[368908028,1751389837837,-460.0,0.00017698,2]
[368908029,1751389837847,-460.0,0.00017698,2]
[368908030,1751389837856,-460.0,0.00017698,2]
[368908032,1751389837865,-460.0,0.00017698,2]
[368908033,1751389837875,-460.0,0.00017698,2]
[368908035,1751389837884,-500.0,0.00017698,2]
[368908037,1751389837893,-460.0,0.00017698,2]
[368908038,1751389837902,-460.0,0.00017698,2]
[368908039,1751389837911,-460.0,0.00017698,2]
[368908041,1751389837920,-460.0,0.00017698,2]
[368908043,1751389837929,-474.69022223,0.00017698,2]
[368908045,1751389837939,-460.0,0.00017698,2]
[368908047,1751389837949,-460.0,0.00017698,2]
[368908049,1751389837958,-594.67151417,0.00017698,2]
[368908051,1751389837967,-460.0,0.00017698,2]
[368908053,1751389837975,-460.0,0.00017698,2]
[368908055,1751389837985,-460.0,0.00017698,2]
[368908057,1751389837994,-460.0,0.00017698,2]
[368908058,1751389838003,-460.0,0.00017698,2]
[368908060,1751389838012,-460.0,0.00017698,2]
[368908062,1751389838022,-460.0,0.00017698,2]
[368908064,1751389838031,-460.0,0.00017698,2]
[368908066,1751389838040,-460.0,0.00017698,2]
[368908068,1751389838049,-460.0,0.00017698,2]
[368908070,1751389838059,-460.0,0.00017698,2]
[368908072,1751389838068,-460.0,0.00017698,2]
[368908074,1751389838078,-281.4,0.00017713,2]
[368908076,1751389838087,-500.0,0.00017849,2]
[368908078,1751389838096,-500.0,0.0001785,2]
[368908080,1751389838106,-500.0,0.0001785,2]
[368908082,1751389838115,-460.0,0.00017928,2]
[368908084,1751389838124,-830.52,0.00017929,2]
[368908086,1751389838133,-571.52,0.00017929,2]
[368908088,1751389838143,-351.26,0.00017929,2]
[368908090,1751389838152,-460.0,0.00017929,2]
[368908092,1751389838162,-460.0,0.00017929,2]
[368908093,1751389838171,-460.0,0.00017929,2]
[368908095,1751389838180,-501.74,0.00017929,2]
[368908097,1751389838190,-644.56,0.00017929,2]
[368908099,1751389838199,-460.0,0.00017929,2]
[368908100,1751389838208,-460.0,0.00017929,2]
[368908101,1751389838217,-460.0,0.00017931,2]
[368908103,1751389838227,-460.0,0.00017931,2]
[368908104,1751389838236,-524.66173324,0.00017931,2]
[368908105,1751389838246,-460.0,0.00017931,2]
[368908106,1751389838255,-590.72,0.00017966,2]
[368908107,1751389838264,-600.19,0.00017966,2]
[368908108,1751389838273,-460.0,0.00017966,2]
[368908109,1751389838283,-460.0,0.00017966,2]
[368908110,1751389838292,-460.0,0.00017966,2]
[368908111,1751389838301,-233.64,0.00017966,2]
[368908112,1751389838310,-215.65,0.00017966,2]
[368908113,1751389838320,-460.0,0.00017966,2]
[368908114,1751389838329,-460.0,0.00017966,2]
[368908115,1751389838339,-460.0,0.00017966,2]
[368908116,1751389838351,-484.44,0.00017966,2]
[368908117,1751389838360,-460.0,0.00017968,2]
[368908118,1751389838370,-168.8179925,0.00017968,2]
[368908119,1751389838380,-460.0,0.00017968,2]
[368908120,1751389838389,-460.0,0.00017969,2]
[368908121,1751389838398,-460.0,0.00017969,2]
[368908122,1751389838407,-460.0,0.00017969,2]
[368908123,1751389838417,-460.0,0.00017969,2]
[368908124,1751389838426,-303.42,0.00017969,2]
[368908125,1751389838436,-407.17,0.00017969,2]
[368908126,1751389838445,-460.0,0.00017969,2]
[368908127,1751389838454,-460.0,0.00017969,2]
[368908128,1751389838463,-460.0,0.00017969,2]
[368908129,1751389838472,-460.0,0.00017969,2]
[368908131,1751389838482,-460.0,0.00017972,2]
[368908132,1751389838491,-500.0,0.00018124,2]
[368908133,1751389838500,-460.0,0.00018202,2]
[368908134,1751389838509,-830.52,0.00018203,2]
[368908135,1751389838518,-571.52,0.00018203,2]
[368908136,1751389838527,-460.0,0.00018203,2]
[368908137,1751389838537,-460.0,0.00018203,2]
[368908138,1751389838546,-255.21,0.00018203,2]
[368908139,1751389838555,-501.74,0.00018203,2]
[368908140,1751389838564,-644.56,0.00018203,2]
[368908141,1751389838573,-460.0,0.00018203,2]
[368908142,1751389838583,-335.93,0.00018203,2]
[368908143,1751389838592,-460.0,0.00018205,2]
[368908144,1751389838601,-213.82,0.00018205,2]
[368908145,1751389838611,-460.0,0.00018205,2]
[368908146,1751389838622,-599.43889913,0.00018229,2]
[368908147,1751389838631,-460.0,0.0001824,2]
[368908148,1751389838742,-460.0,0.0001824,2]
[368908149,1751389838764,-460.0,0.0001824,2]
[368908150,1751389838774,-328.7,0.0001824,2]
[368908151,1751389838784,-460.0,0.0001824,2]
[368908152,1751389838793,-603.57,0.0001824,2]
[368908153,1751389838803,-460.0,0.00018243,2]
[368908154,1751389838812,-460.0,0.00018243,2]
[368908155,1751389838822,-170.28,0.00018243,2]
[368908156,1751389838831,-460.0,0.00018243,2]
[368908157,1751389838841,-460.0,0.00018243,2]
[368908158,1751389838851,-460.0,0.00018243,2]
[368908159,1751389838862,-460.0,0.00018243,2]
[368908160,1751389838872,-500.0,0.00018244,2]
[368908161,1751389838882,-212.72,0.00018246,2]
[368908162,1751389838891,-460.0,0.00018476,2]
[368908163,1751389838900,-830.52,0.00018477,2]
[368908164,1751389838910,-571.52,0.00018477,2]
[368908165,1751389838919,-460.0,0.00018477,2]
[368908166,1751389838928,-460.0,0.00018477,2]
[368908167,1751389838938,-501.74,0.00018477,2]
[368908168,1751389838947,-644.56,0.00018477,2]
[368908169,1751389838956,-460.0,0.00018477,2]
[368908170,1751389838965,-460.0,0.00018479,2]
[368908171,1751389838974,-500.0,0.00018479,2]
[368908172,1751389838983,-150.31582457,0.00018479,2]
[368908174,1751389838992,-460.0,0.00018514,2]
[368908175,1751389839002,-460.0,0.00018514,2]
[368908176,1751389839011,-460.0,0.00018514,2]
[368908177,1751389839020,-460.0,0.00018514,2]
[368908178,1751389839030,-460.0,0.00018517,2]
[368908179,1751389839039,-471.87355698,0.00018517,2]
[368908180,1751389839048,-460.0,0.00018517,2]
[368908181,1751389839057,-158.29034388,0.00018517,2]
[368908182,1751389839067,-460.0,0.00018517,2]
[368908183,1751389839076,-460.0,0.00018517,2]
[368908184,1751389839085,-500.0,0.00018544,2]
[368908185,1751389839094,-300.0,0.00018682,2]
[368908186,1751389839103,-1329.94908613,0.000187,2]
[368908187,1751389839113,-1329.94908586,0.000187,2]
[368908188,1751389839123,-1329.94908586,0.000187,2]
[368908189,1751389839132,-1329.94908586,0.00018728,2]
[368908190,1751389839142,-460.0,0.0001875,2]
[368908191,1751389839151,-830.52,0.00018751,2]
[368908192,1751389839161,-571.52,0.00018751,2]
[368908193,1751389839171,-460.0,0.00018751,2]
[368908194,1751389839180,-460.0,0.00018751,2]
[368908195,1751389839191,-501.74,0.00018751,2]
[368908196,1751389839201,-644.56,0.00018751,2]
[368908197,1751389839211,-460.0,0.00018751,2]
[368908198,1751389839221,-460.0,0.00018753,2]
[368908199,1751389839230,-500.0,0.00018768,2]
[368908200,1751389839240,-490.89557794,0.00018788,2]
[368908201,1751389839250,-460.0,0.00018788,2]
[368908202,1751389839260,-460.0,0.00018788,2]
[368908203,1751389839270,-460.0,0.00018788,2]
[368908204,1751389839280,-267.93,0.00018791,2]
[368908205,1751389839290,-460.0,0.00018791,2]
[368908206,1751389839300,-460.0,0.00018791,2]
[368908207,1751389839309,-460.0,0.00018791,2]
[368908208,1751389839319,-470.25421119,0.000189,2]
[368908209,1751389839329,-1329.94908586,0.00019003,2]
[368908210,1751389839343,-460.0,0.00019024,2]
[368908211,1751389839353,-830.52,0.00019025,2]
[368908212,1751389839363,-571.52,0.00019025,2]
[368908213,1751389839374,-309.06618745,0.00019025,2]
[368908214,1751389839385,-460.0,0.00019025,2]
[368908215,1751389839395,-501.74,0.00019025,2]
[368908216,1751389839404,-644.56,0.00019025,2]
[368908217,1751389839414,-460.0,0.00019025,2]
[368908218,1751389839423,-460.0,0.00019027,2]
[368908219,1751389839434,-314.28,0.00019055,3]
[368908220,1751389839443,-234.47,0.00019062,2]
[368908221,1751389839452,-524.33,0.00019062,2]
[368908222,1751389839462,-460.0,0.00019062,2]
[368908223,1751389839471,-460.0,0.00019065,2]
[368908224,1751389839480,-460.0,0.00019065,2]
[368908225,1751389839490,-460.0,0.00019065,2]
[368908226,1751389839501,-187.999038,0.00019178,2]
[368908227,1751389839510,-1329.94908586,0.00019279,2]
[368908228,1751389839519,-273.80796093,0.00019298,2]
[368908229,1751389839529,-830.52,0.00019299,2]
[368908230,1751389839539,-571.52,0.00019299,2]
[368908231,1751389839549,-460.0,0.00019299,2]
[368908232,1751389839559,-501.74,0.00019299,2]